bitfinex/quotes_BTCUSD_20250614
["timestamp","ask_amount","ask_price","bid_price","bid_amount"]
[1749936872757,0.80843503,105290.0,105280.0,0.4086996]
[1749936873171,0.80843503,105290.0,105280.0,0.41819762]
[1749936873991,0.80843503,105290.0,105280.0,0.41819894]
[1749936874796,0.90458425,105290.0,105280.0,0.41819894]
[1749936875478,0.91408137,105290.0,105280.0,0.41819894]
[1749936875688,0.31459286,105290.0,105280.0,0.41819894]
[1749936875901,0.92357894,105290.0,105280.0,0.41819894]
[1749936876105,0.01899451,105290.0,105280.0,0.41819839]
[1749936876317,0.62798059,105290.0,105280.0,0.41819839]
[1749936877270,0.01899397,105290.0,105280.0,0.41819839]
[1749936877481,0.63747744,105290.0,105280.0,0.41819839]
[1749936878331,0.73362666,105290.0,105280.0,0.41819839]
[1749936879037,0.53523871,105290.0,105280.0,0.41819839]
[1749936879647,0.54473583,105290.0,105280.0,0.41819839]
[1749936879847,0.44858661,105290.0,105280.0,0.41819839]
[1749936880064,0.45808337,105290.0,105280.0,0.41819839]
[1749936880273,0.02849127,105290.0,105280.0,0.41819839]
[1749936881436,1.02849118,105290.0,105280.0,0.41819839]
[1749936881646,1.02849118,105290.0,105280.0,0.44509839]
[1749936882474,1.1246404,105290.0,105280.0,0.41819839]
[1749936883104,1.1341377,105290.0,105280.0,0.41819839]
[1749936883513,1.1246404,105290.0,105280.0,0.41819839]
[1749936886026,1.1246404,105290.0,105280.0,0.44559839]
[1749936886274,1.11514319,105290.0,105280.0,0.44559839]
[1749936886540,1.1246404,105290.0,105280.0,0.44559839]
[1749936888965,1.11514319,105290.0,105280.0,0.44559839]
[1749936889422,1.0,105290.0,105280.0,1.08198447]
[1749936889946,1.0,105290.0,105280.0,1.11040738]
[1749936890574,1.0,105290.0,105280.0,1.08198447]
[1749936891204,1.0,105290.0,105280.0,1.11040738]
[1749936893485,1.0,105290.0,105280.0,1.08198447]
[1749936893665,1.0,105290.0,105280.0,0.47299839]
[1749936893875,1.0,105290.0,105280.0,1.08198447]
[1749936897356,1.0,105290.0,105280.0,1.12266447]
[1749936897792,1.0,105290.0,105280.0,1.15108738]
[1749936901385,0.78819441,105290.0,105280.0,1.12266447]
[1749936904997,0.78819441,105290.0,105280.0,0.51367839]
[1749936905214,0.78819441,105290.0,105280.0,1.12266447]
[1749936906019,0.78819441,105290.0,105280.0,0.51367839]
[1749936906255,0.78819441,105290.0,105280.0,1.12266447]
[1749936912376,0.78819441,105290.0,105280.0,1.15108738]
[1749936913152,0.78819441,105290.0,105280.0,1.15092738]
[1749936917888,0.78819441,105290.0,105280.0,0.5419413]
[1749936918093,0.78819441,105290.0,105280.0,1.15092738]
[1749936935872,1.52232971,105290.0,105280.0,0.26212733]
[1749936936086,2.29296238,105290.0,105280.0,0.002]
[1749936936303,2.32152361,105290.0,105280.0,0.002]
[1749936936513,2.37048639,105290.0,105280.0,0.15784]
[1749936936956,2.27433738,105290.0,105280.0,0.15784]
[1749936937161,2.33561859,105290.0,105280.0,0.15784]
[1749936937370,2.33661833,105290.0,105280.0,0.15784]
[1749936937577,2.32993104,105290.0,105280.0,0.15784]
[1749936937810,2.33661767,105290.0,105280.0,0.15584]
[1749936938022,2.34261767,105290.0,105280.0,0.15584]
[1749936938238,2.43208026,105290.0,105280.0,0.15584]
[1749936938458,2.439767,105290.0,105280.0,0.15584]
[1749936938678,2.444767,105290.0,105280.0,0.15584]
[1749936938905,2.44476704,105290.0,105280.0,0.15584]
[1749936939342,2.43808026,105290.0,105280.0,0.15584]
[1749936939549,2.44476706,105290.0,105280.0,0.15584]
[1749936939760,0.53946799,105280.0,105270.0,0.1291]
[1749936939968,1.15514087,105280.0,105270.0,0.28494]
[1749936940198,1.15514102,105280.0,105270.0,0.28494]
[1749936940660,0.55565314,105280.0,105270.0,0.28494]
[1749936940875,1.16463921,105280.0,105270.0,0.31444]
[1749936941089,1.16563919,105280.0,105270.0,0.31444]
[1749936941304,1.16095227,105280.0,105270.0,0.32393929]
[1749936941531,1.16763919,105280.0,105270.0,0.32393929]
[1749936941749,1.16763919,105280.0,105270.0,0.32393938]
[1749936941959,1.16763919,105280.0,105270.0,0.33343867]
[1749936942389,1.16763919,105280.0,105270.0,0.34293787]
[1749936942594,1.16095227,105280.0,105270.0,0.34293787]
[1749936942850,1.16763919,105280.0,105270.0,0.34293787]
[1749936943296,1.16095227,105280.0,105270.0,0.34293787]
[1749936943504,1.16763919,105280.0,105270.0,0.34293787]
[1749936943687,1.16095227,105280.0,105270.0,0.34293787]
[1749936943926,1.16763919,105280.0,105270.0,0.34293787]
[1749936944174,1.16095227,105280.0,105270.0,0.34293787]
[1749936944383,1.25069204,105280.0,105270.0,0.34293787]
[1749936944796,1.16095227,105280.0,105270.0,0.34293787]
[1749936947011,1.16095227,105280.0,105270.0,0.33343867]
[1749936949680,1.15145407,105280.0,105270.0,0.25584]
[1749936950108,1.14195568,105280.0,105270.0,0.25584]
[1749936951920,1.14195568,105280.0,105270.0,0.23584]
[1749936952552,1.2974049,105280.0,105270.0,0.23584]
[1749936952975,1.2381049,105280.0,105270.0,0.23584]
[1749936954238,1.24479194,105280.0,105270.0,0.23584]
[1749936954706,1.2381049,105280.0,105270.0,0.23584]
[1749936954926,1.24479194,105280.0,105270.0,0.23584]
[1749936955134,1.24479196,105280.0,105270.0,0.23584]
[1749936955341,1.2381049,105280.0,105270.0,0.23584]
[1749936955553,1.24479196,105280.0,105270.0,0.23584]
[1749936955730,1.2381049,105280.0,105270.0,0.23584]
[1749936955965,1.24479196,105280.0,105270.0,0.23584]
[1749936956170,1.2381049,105280.0,105270.0,0.23584]
[1749936956374,1.24479196,105280.0,105270.0,0.23584]
[1749936956584,1.24479194,105280.0,105270.0,0.23584]
[1749936956792,1.24479195,105280.0,105270.0,0.23584]
[1749936956996,1.24479194,105280.0,105270.0,0.23584]
[1749936957249,1.2381049,105280.0,105270.0,0.23584]
[1749936957472,0.63580586,105280.0,105270.0,0.08]
[1749936957675,2.04386101,105280.0,105270.0,0.08]
[1749936957883,1.42818751,105280.0,105270.0,0.2358]
[1749936958101,2.03717359,105280.0,105270.0,0.2358]
[1749936958301,2.04386146,105280.0,105270.0,0.2358]
[1749936958533,1.42818751,105280.0,105270.0,0.2358]
[1749936958716,2.0724245,105280.0,105270.0,0.2358]
[1749936958927,2.0724245,105280.0,105270.0,0.08]
[1749936959126,1.46343842,105280.0,105270.0,0.2358]
[1749936959948,1.4634384,105280.0,105270.0,0.2358]
[1749936960154,1.46343842,105280.0,105270.0,0.2358]
[1749936960357,2.07242448,105280.0,105270.0,0.2358]
[1749936960565,2.07242447,105280.0,105270.0,0.08]
[1749936960769,2.27242456,105280.0,105270.0,0.2358]
[1749936961350,2.26573659,105280.0,105270.0,0.2358]
[1749936961571,2.27242456,105280.0,105270.0,0.2358]
[1749936962311,2.27240414,105280.0,105270.0,0.2358]
[1749936963389,2.27240415,105280.0,105270.0,0.08]
[1749936963620,2.27240415,105280.0,105270.0,0.2358]
[1749936963834,2.26573659,105280.0,105270.0,0.2358]
[1749936964045,2.27240414,105280.0,105270.0,0.2358]
[1749936966070,1.04776443,105280.0,105270.0,0.2358]
[1749936966308,2.27240414,105280.0,105270.0,0.2358]
[1749936966524,2.26573659,105280.0,105270.0,0.2358]
[1749936966751,2.2724041,105280.0,105270.0,0.2358]
[1749936966971,2.27240412,105280.0,105270.0,0.2358]
[1749936967193,2.2724041,105280.0,105270.0,0.2358]
[1749936968520,2.26573659,105280.0,105270.0,0.2358]
[1749936968732,2.2724041,105280.0,105270.0,0.2358]
[1749936968942,2.26573659,105280.0,105270.0,0.2358]
[1749936969160,2.27240411,105280.0,105270.0,0.2358]
[1749936969380,2.27240409,105280.0,105270.0,0.2358]
[1749936969582,2.26573659,105280.0,105270.0,0.2358]
[1749936969814,2.27240409,105280.0,105270.0,0.2358]
[1749936970061,2.26573659,105280.0,105270.0,0.2358]
[1749936970512,2.2724041,105280.0,105270.0,0.2358]
[1749936970719,2.27240409,105280.0,105270.0,0.2358]
[1749936971142,2.26573659,105280.0,105270.0,0.2358]
[1749936971367,2.2724041,105280.0,105270.0,0.2358]
[1749936971577,2.27240409,105280.0,105270.0,0.2358]
[1749936971788,2.26573659,105280.0,105270.0,0.2358]
[1749936972230,2.27240409,105280.0,105270.0,0.2358]
[1749936972441,2.26573659,105280.0,105270.0,0.08]
[1749936972658,2.2924046,105280.0,105270.0,0.08]
[1749936972849,2.32371432,105280.0,105270.0,0.08]
[1749936973080,2.33038249,105280.0,105270.0,0.08]
[1749936973292,2.32938249,105280.0,105270.0,0.08]
[1749936973516,2.32938251,105280.0,105270.0,0.08]
[1749936973719,2.32938247,105280.0,105270.0,0.08]
[1749936973951,2.32938247,105280.0,105270.0,0.2358]
[1749936974176,2.32740294,105280.0,105270.0,0.2358]
[1749936974395,2.32671432,105280.0,105270.0,0.2358]
[1749936974614,2.33071432,105280.0,105270.0,0.2358]
[1749936974796,2.33740289,105280.0,105270.0,0.2358]
[1749936975947,2.29942516,105280.0,105270.0,0.2358]
[1749936976213,2.29273659,105280.0,105270.0,0.2358]
[1749936976675,2.33071432,105280.0,105270.0,0.2358]
[1749936976904,2.29942516,105280.0,105270.0,0.2358]
[1749936977131,2.29273659,105280.0,105270.0,0.2358]
[1749936977817,2.29941232,105280.0,105270.0,0.2358]
[1749936978234,2.29273659,105280.0,105270.0,0.2358]
[1749936978438,2.29941231,105280.0,105270.0,0.2358]
[1749936978649,2.29273659,105280.0,105270.0,0.2358]
[1749936978825,2.2994123,105280.0,105270.0,0.2358]
[1749936979665,2.29941229,105280.0,105270.0,0.2358]
[1749936980569,2.29273659,105280.0,105270.0,0.2358]
[1749936980764,2.29941229,105280.0,105270.0,0.2358]
[1749936981894,2.2994123,105280.0,105270.0,0.2358]
[1749936982140,2.29273659,105280.0,105270.0,0.2358]
[1749936982373,2.29941229,105280.0,105270.0,0.2358]
[1749936982588,2.33739003,105280.0,105270.0,0.08]
[1749936982797,2.33739004,105280.0,105270.0,0.08]
[1749936983756,2.33739005,105280.0,105270.0,0.08]
[1749936983974,2.33071432,105280.0,105270.0,0.08]
[1749936984401,2.33739005,105280.0,105270.0,0.08]
[1749936984622,2.33071432,105280.0,105270.0,0.08]
[1749936984870,2.33739005,105280.0,105270.0,0.08]
[1749936985154,2.33071432,105280.0,105270.0,0.08]
[1749936985390,2.33739005,105280.0,105270.0,0.08]
[1749936985638,2.33071432,105280.0,105270.0,0.08]
[1749936986108,2.33739004,105280.0,105270.0,0.08]
[1749936986556,2.33739005,105280.0,105270.0,0.08]
[1749936987195,2.33071432,105280.0,105270.0,0.08]
[1749936987414,2.33739005,105280.0,105270.0,0.08]
[1749936988591,2.33071432,105280.0,105270.0,0.08]
[1749936988805,2.33739003,105280.0,105270.0,0.08]
[1749936989786,2.33071432,105280.0,105270.0,0.08]
[1749936990022,2.33739002,105280.0,105270.0,0.08]
[1749936990490,2.33739003,105280.0,105270.0,0.08]
[1749936990935,2.33071432,105280.0,105270.0,0.08]
[1749936991153,2.33739003,105280.0,105270.0,0.08]
[1749936991378,2.33071432,105280.0,105270.0,0.08]
[1749936991638,2.29273659,105280.0,105270.0,0.08]
[1749936991889,2.33073913,105280.0,105270.0,0.08]
[1749936992124,2.33741484,105280.0,105270.0,0.08]
[1749936992350,2.33742766,105280.0,105270.0,0.08]
[1749936992994,2.33742765,105280.0,105270.0,0.08]
[1749936993223,2.33742766,105280.0,105270.0,0.08]
[1749936993668,2.33073913,105280.0,105270.0,0.08]
[1749936993840,2.33742765,105280.0,105270.0,0.08]
[1749936994422,2.33073913,105280.0,105270.0,0.08]
[1749936994646,2.33742765,105280.0,105270.0,0.08]
[1749936995066,2.33073913,105280.0,105270.0,0.08]
[1749936995321,2.33742765,105280.0,105270.0,0.08]
[1749936995564,2.33073913,105280.0,105270.0,0.08]
[1749936995852,2.33742765,105280.0,105270.0,0.08]
[1749936996542,2.33073913,105280.0,105270.0,0.08]
[1749936997194,2.33742672,105280.0,105270.0,0.08]
[1749936997654,2.33073913,105280.0,105270.0,0.08]
[1749936998026,2.33742672,105280.0,105270.0,0.08]
[1749936999475,2.33073913,105280.0,105270.0,0.08]
[1749936999649,2.33742672,105280.0,105270.0,0.08]
[1749936999857,2.33073913,105280.0,105270.0,0.08]
[1749937000085,2.33742672,105280.0,105270.0,0.08]
[1749937000282,2.33073913,105280.0,105270.0,0.08]
[1749937000488,2.33742672,105280.0,105270.0,0.08]
[1749937000657,2.33073913,105280.0,105270.0,0.08]
[1749937000879,2.33742671,105280.0,105270.0,0.08]
[1749937001291,2.33742672,105280.0,105270.0,0.08]
[1749937001752,2.39432079,105280.0,105270.0,0.08]
[1749937002271,2.3876332,105280.0,105270.0,0.08]
[1749937002729,2.39432079,105280.0,105270.0,0.08]
[1749937002950,2.3876332,105280.0,105270.0,0.08]
[1749937003166,2.39432079,105280.0,105270.0,0.08]
[1749937003619,2.3876332,105280.0,105270.0,0.08]
[1749937004301,2.39432079,105280.0,105270.0,0.08]
[1749937004524,2.3876332,105280.0,105270.0,0.08]
[1749937004991,2.39432079,105280.0,105270.0,0.08]
[1749937005215,2.3876332,105280.0,105270.0,0.08]
[1749937005430,2.39432079,105280.0,105270.0,0.08]
[1749937005661,2.3876332,105280.0,105270.0,0.08]
[1749937006115,2.39432079,105280.0,105270.0,0.08]
[1749937006582,2.3876332,105280.0,105270.0,0.08]
[1749937006825,2.39432172,105280.0,105270.0,0.08]
[1749937007499,2.10945551,105280.0,105270.0,0.08]
[1749937007701,2.29942511,105280.0,105270.0,0.08]
[1749937008153,2.29273659,105280.0,105270.0,0.08]
[1749937008598,2.29942511,105280.0,105270.0,0.08]
[1749937008808,2.29273659,105280.0,105270.0,0.08]
[1749937009253,2.29942511,105280.0,105270.0,0.08]
[1749937009465,2.29273659,105280.0,105270.0,0.08]
[1749937009692,2.29942511,105280.0,105270.0,0.08]
[1749937009888,2.29273659,105280.0,105270.0,0.08]
[1749937010092,2.29942513,105280.0,105270.0,0.08]
[1749937010308,2.29273659,105280.0,105270.0,0.08]
[1749937010799,2.29942513,105280.0,105270.0,0.08]
[1749937011983,2.29273659,105280.0,105270.0,0.08]
[1749937012128,2.29942513,105280.0,105270.0,0.08]
[1749937012338,2.29273659,105280.0,105270.0,0.08]
[1749937012744,2.26293659,105280.0,105270.0,0.08]
[1749937012932,2.26962513,105280.0,105270.0,0.08]
[1749937013336,2.23343659,105280.0,105270.0,0.08]
[1749937013536,2.24012513,105280.0,105270.0,0.08]
[1749937013869,2.23343659,105280.0,105270.0,0.08]
[1749937014090,2.24012513,105280.0,105270.0,0.08]
[1749937014291,2.23343659,105280.0,105270.0,0.08]
[1749937014711,2.24012513,105280.0,105270.0,0.08]
[1749937015530,2.29732513,105280.0,105270.0,0.08]
[1749937015742,2.32863913,105280.0,105270.0,0.08]
[1749937015969,2.33532773,105280.0,105270.0,0.08]
[1749937016183,2.32863913,105280.0,105270.0,0.08]
[1749937016407,2.33532775,105280.0,105270.0,0.08]
[1749937016627,2.33532774,105280.0,105270.0,0.08]
[1749937017486,2.39222182,105280.0,105270.0,0.08]
[1749937017741,2.3855332,105280.0,105270.0,0.08]
[1749937018155,2.39221987,105280.0,105270.0,0.08]
[1749937018550,2.3855332,105280.0,105270.0,0.08]
[1749937018777,2.39221987,105280.0,105270.0,0.08]
[1749937018959,2.3283332,105280.0,105270.0,0.08]
[1749937019170,2.33501987,105280.0,105270.0,0.08]
[1749937019395,2.3283332,105280.0,105270.0,0.08]
[1749937019526,2.33501987,105280.0,105270.0,0.08]
[1749937020324,2.3283332,105280.0,105270.0,0.08]
[1749937021000,2.33501987,105280.0,105270.0,0.08]
[1749937022059,2.3283332,105280.0,105270.0,0.08]
[1749937022280,2.33501987,105280.0,105270.0,0.08]
[1749937022493,2.27812571,105280.0,105270.0,0.08]
[1749937022710,2.2781257,105280.0,105270.0,0.08]
[1749937022918,2.27143913,105280.0,105270.0,0.08]
[1749937023118,2.27812569,105280.0,105270.0,0.08]
[1749937023319,2.27143913,105280.0,105270.0,0.08]
[1749937023527,2.27812569,105280.0,105270.0,0.08]
[1749937023731,2.27812575,105280.0,105270.0,0.08]
[1749937024141,2.27143913,105280.0,105270.0,0.08]
[1749937024342,2.28481239,105280.0,105270.0,0.08]
[1749937024747,2.27812576,105280.0,105270.0,0.08]
[1749937025155,2.28481239,105280.0,105270.0,0.08]
[1749937026789,2.27812576,105280.0,105270.0,0.08]
[1749937027020,2.28481434,105280.0,105270.0,0.08]
[1749937027646,2.27812576,105280.0,105270.0,0.08]
[1749937027864,2.28481434,105280.0,105270.0,0.08]
[1749937028331,2.27812576,105280.0,105270.0,0.08]
[1749937028580,2.28481434,105280.0,105270.0,0.1102]
[1749937029083,2.33501983,105280.0,105270.0,0.1102]
[1749937029341,2.34170841,105280.0,105270.0,0.1102]
[1749937030510,2.33501983,105280.0,105270.0,0.1102]
[1749937030754,2.34170841,105280.0,105270.0,0.1102]
[1749937032370,2.33501983,105280.0,105270.0,0.1102]
[1749937032588,2.3417084,105280.0,105270.0,0.1102]
[1749937032803,2.33501983,105280.0,105270.0,0.1102]
[1749937033027,2.3417084,105280.0,105270.0,0.1102]
[1749937033717,2.33501983,105280.0,105270.0,0.1102]
[1749937034022,2.3417084,105280.0,105270.0,0.1102]
[1749937034253,2.3417084,105280.0,105270.0,0.08]
[1749937034748,2.33501983,105280.0,105270.0,0.08]
[1749937034992,2.33501983,105280.0,105270.0,0.1099]
[1749937035486,2.3417084,105280.0,105270.0,0.1099]
[1749937036414,2.33501983,105280.0,105270.0,0.1099]
[1749937036664,2.3417084,105280.0,105270.0,0.1374]
[1749937037822,0.51949393,105280.0,105270.0,0.1374]
[1749937038047,0.02337441,105280.0,105270.0,0.36538409]
[1749937038288,0.62567271,105280.0,105270.0,0.36538409]
[1749937038514,0.97235954,105280.0,105270.0,0.36538409]
[1749937038746,0.97517046,105280.0,105270.0,0.36538409]
[1749937038970,0.96167271,105280.0,105270.0,0.36538409]
[1749937039193,0.97117046,105280.0,105270.0,0.36538409]
[1749937039426,0.96167271,105280.0,105270.0,0.36538409]
[1749937039680,0.95567271,105280.0,105270.0,0.36538409]
[1749937039903,0.96917037,105280.0,105270.0,0.36538409]
[1749937040134,0.95567271,105280.0,105270.0,0.36538409]
[1749937040364,0.95967271,105280.0,105270.0,0.36538409]
[1749937040589,0.96067271,105280.0,105270.0,0.36538409]
[1749937040814,0.95667271,105280.0,105270.0,0.36538409]
[1749937041040,0.96817037,105280.0,105270.0,0.36538409]
[1749937041300,0.95867271,105280.0,105270.0,0.36538409]
[1749937042419,0.00968663,105280.0,105270.0,0.36538409]
[1749937042647,0.00968663,105280.0,105270.0,0.40590409]
[1749937043129,0.00968663,105280.0,105270.0,1.01489017]
[1749937044002,0.00968663,105280.0,105270.0,0.40590409]
[1749937045178,0.00968663,105280.0,105270.0,1.01489017]
[1749937045404,0.00968663,105280.0,105270.0,0.40590409]
[1749937050576,0.00968663,105280.0,105270.0,0.36538409]
[1749937050793,0.00968663,105280.0,105270.0,0.56162409]
[1749937051233,0.00968663,105280.0,105270.0,1.17061017]
[1749937052530,0.00968663,105280.0,105270.0,1.26675939]
[1749937052960,0.00968663,105280.0,105270.0,1.26685193]
[1749937056700,0.00968663,105280.0,105270.0,0.46162585]
[1749937056920,0.83713665,105280.0,105270.0,0.35588534]
[1749937057131,0.83713665,105280.0,105270.0,0.34638632]
[1749937057345,1.16763918,105280.0,105270.0,0.29308]
[1749937057557,1.27047541,105280.0,105270.0,0.26558]
[1749937057769,1.2904755,105280.0,105270.0,0.1099]
[1749937057982,1.38671742,105280.0,105270.0,0.08]
[1749937058209,1.59457101,105280.0,105270.0,0.23568]
[1749937058629,1.60125848,105280.0,105270.0,0.23568]
[1749937058832,1.60125852,105280.0,105270.0,0.23568]
[1749937059010,1.59457101,105280.0,105270.0,0.23568]
[1749937059219,1.60125852,105280.0,105270.0,0.23568]
[1749937059426,1.53445207,105280.0,105270.0,0.23568]
[1749937059628,1.53445203,105280.0,105270.0,0.23568]
[1749937059838,1.53445227,105280.0,105270.0,0.23568]
[1749937060269,1.53445226,105280.0,105270.0,0.23568]
[1749937060493,1.52776455,105280.0,105270.0,0.23568]
[1749937060695,1.53443347,105280.0,105270.0,0.23568]
[1749937061510,1.52776455,105280.0,105270.0,0.23568]
[1749937062055,1.53443347,105280.0,105270.0,0.23568]
[1749937062263,1.52776455,105280.0,105270.0,0.23568]
[1749937062675,1.53443347,105280.0,105270.0,0.23568]
[1749937063049,0.99225385,105280.0,105270.0,0.23568]
[1749937063273,1.43828413,105280.0,105270.0,0.29458]
[1749937063488,0.56532179,105280.0,105270.0,0.51306534]
[1749937063703,0.5586531,105280.0,105270.0,0.51306552]
[1749937063916,0.5586531,105280.0,105270.0,0.52256463]
[1749937064123,0.5586531,105280.0,105270.0,0.53206365]
[1749937065408,0.5586531,105280.0,105270.0,0.5320632]
[1749937066441,0.65480232,105280.0,105270.0,0.5320632]
[1749937067280,0.65480232,105280.0,105270.0,0.52256427]
[1749937067678,0.65480232,105280.0,105270.0,0.51306525]
[1749937068080,0.5586531,105280.0,105270.0,0.51306525]
[1749937068318,0.5586531,105280.0,105270.0,0.52256427]
[1749937069139,0.5586531,105280.0,105270.0,0.51306525]
[1749937069956,0.5653402,105280.0,105270.0,0.51306525]
[1749937070329,0.5653402,105280.0,105270.0,0.50356614]
[1749937070469,0.66148942,105280.0,105270.0,0.50356614]
[1749937070671,0.65199104,105280.0,105270.0,0.50356614]
[1749937070872,0.64530393,105280.0,105270.0,0.50356614]
[1749937071411,0.65199101,105280.0,105270.0,0.50356614]
[1749937071611,0.64530393,105280.0,105270.0,0.50356614]
[1749937071813,0.65199104,105280.0,105270.0,0.50356614]
[1749937072231,1.19417066,105280.0,105270.0,0.50356614]
[1749937072795,1.09802144,105280.0,105270.0,0.50356614]
[1749937072999,1.09133433,105280.0,105270.0,0.50356614]
[1749937073193,1.09802144,105280.0,105270.0,0.50356614]
[1749937074157,1.09802145,105280.0,105270.0,0.50356614]
[1749937074359,1.09802145,105280.0,105270.0,0.49406694]
[1749937075300,1.18748355,105280.0,105270.0,0.49406694]
[1749937076200,1.18467219,105280.0,105270.0,0.49406694]
[1749937076645,1.17798507,105280.0,105270.0,0.49406703]
[1749937076867,1.18467221,105280.0,105270.0,0.49406703]
[1749937077094,1.17798507,105280.0,105270.0,0.49406703]
[1749937077314,1.18467221,105280.0,105270.0,0.49406703]
[1749937077759,1.18467225,105280.0,105270.0,0.49406703]
[1749937077968,1.18467232,105280.0,105270.0,0.49406703]
[1749937078853,1.18466572,105280.0,105270.0,0.49406703]
[1749937079137,1.17798507,105280.0,105270.0,0.49406703]
[1749937079352,1.24568266,105280.0,105270.0,0.49406703]
[1749937079573,1.25236323,105280.0,105270.0,0.49406703]
[1749937079984,1.25236323,105280.0,105270.0,0.30407938]
[1749937080192,1.24568266,105280.0,105270.0,0.30407938]
[1749937080422,1.25236325,105280.0,105270.0,0.30407938]
[1749937080652,1.24568266,105280.0,105270.0,0.30407938]
[1749937080837,1.25236326,105280.0,105270.0,0.29458]
[1749937081751,1.25236333,105280.0,105270.0,0.29458]
[1749937082195,1.24568266,105280.0,105270.0,0.29458]
[1749937082419,1.25236333,105280.0,105270.0,0.29458]
[1749937082898,1.24568266,105280.0,105270.0,0.29458]
[1749937083121,1.25236333,105280.0,105270.0,0.29458]
[1749937083574,1.25236334,105280.0,105270.0,0.29458]
[1749937083798,1.24568266,105280.0,105270.0,0.29458]
[1749937084038,1.2523633,105280.0,105270.0,0.29458]
[1749937084734,1.15621408,105280.0,105270.0,0.29458]
[1749937084960,1.14953344,105280.0,105270.0,0.29458]
[1749937085405,1.15621405,105280.0,105270.0,0.29458]
[1749937085635,1.15621403,105280.0,105270.0,0.29458]
[1749937085859,1.14953344,105280.0,105270.0,0.29458]
[1749937086335,1.1562141,105280.0,105270.0,0.29458]
[1749937086682,1.14953344,105280.0,105270.0,0.29458]
[1749937086901,1.1562141,105280.0,105270.0,0.29458]
[1749937087395,1.14953344,105280.0,105270.0,0.29458]
[1749937087816,1.1562141,105280.0,105270.0,0.29458]
[1749937088237,1.15621409,105280.0,105270.0,0.29458]
[1749937088445,1.14953344,105280.0,105270.0,0.29458]
[1749937089324,1.15621406,105280.0,105270.0,0.29458]
[1749937089545,1.14953344,105280.0,105270.0,0.29458]
[1749937089766,1.15621407,105280.0,105270.0,0.29458]
[1749937090267,1.15621409,105280.0,105270.0,0.29458]
[1749937090490,1.14953344,105280.0,105270.0,0.29458]
[1749937090716,1.15621409,105280.0,105270.0,0.29458]
[1749937090941,1.14953344,105280.0,105270.0,0.29458]
[1749937091151,1.15622092,105280.0,105270.0,0.29458]
[1749937091372,1.15622093,105280.0,105270.0,0.29458]
[1749937091618,1.15622092,105280.0,105270.0,0.29458]
[1749937091821,1.25064794,105280.0,105270.0,0.29458]
[1749937092023,1.25733543,105280.0,105270.0,0.29458]
[1749937092234,1.25064794,105280.0,105270.0,0.29458]
[1749937092446,1.25733543,105280.0,105270.0,0.29458]
[1749937092652,1.25064794,105280.0,105270.0,0.29458]
[1749937093759,1.25733538,105280.0,105270.0,0.29458]
[1749937093970,1.25733543,105280.0,105270.0,0.29458]
[1749937094423,1.25064794,105280.0,105270.0,0.29458]
[1749937094661,1.25733543,105280.0,105270.0,0.29458]
[1749937094907,1.25064794,105280.0,105270.0,0.29458]
[1749937095375,1.16118621,105280.0,105270.0,0.49406703]
[1749937095625,1.16118621,105280.0,105270.0,0.29458]
[1749937095882,1.15449872,105280.0,105270.0,0.29458]
[1749937096143,1.16118621,105280.0,105270.0,0.29458]
[1749937096401,1.15449872,105280.0,105270.0,0.29458]
[1749937096667,1.16118621,105280.0,105270.0,0.29458]
[1749937096917,1.15449872,105280.0,105270.0,0.29458]
[1749937097163,1.1611862,105280.0,105270.0,0.29458]
[1749937097406,1.15449872,105280.0,105270.0,0.29458]
[1749937097902,1.1611862,105280.0,105270.0,0.29458]
[1749937098404,1.15449872,105280.0,105270.0,0.29458]
[1749937098655,1.1611862,105280.0,105270.0,0.29458]
[1749937099436,1.15449872,105280.0,105270.0,0.29458]
[1749937099681,1.16118611,105280.0,105270.0,0.29458]
[1749937099930,1.15449872,105280.0,105270.0,0.29458]
[1749937100174,1.16118449,105280.0,105270.0,0.48456765]
[1749937100453,1.16118447,105280.0,105270.0,0.48456765]
[1749937100707,1.15449872,105280.0,105270.0,0.48456765]
[1749937101226,1.15449872,105280.0,105270.0,0.29458]
[1749937101474,1.16118458,105280.0,105270.0,0.29458]
[1749937102534,1.16118458,105280.0,105270.0,0.48456765]
[1749937102970,1.15449872,105280.0,105270.0,0.29458]
[1749937103417,1.16118458,105280.0,105270.0,0.29458]
[1749937103883,1.15449872,105280.0,105270.0,0.29458]
[1749937104113,1.16118458,105280.0,105270.0,0.29458]
[1749937104571,1.15449872,105280.0,105270.0,0.29458]
[1749937105020,1.16118458,105280.0,105270.0,0.29458]
[1749937105509,1.15449872,105280.0,105270.0,0.29458]
[1749937105734,1.16118458,105280.0,105270.0,0.29458]
[1749937106183,1.15449872,105280.0,105270.0,0.29458]
[1749937107091,1.16118458,105280.0,105270.0,0.29458]
[1749937108099,1.15449872,105280.0,105270.0,0.29458]
[1749937108320,1.16118458,105280.0,105270.0,0.29458]
[1749937108533,1.15449872,105280.0,105270.0,0.29458]
[1749937108749,1.16118613,105280.0,105270.0,0.29458]
[1749937108987,1.15449872,105280.0,105270.0,0.29458]
[1749937109488,1.16118613,105280.0,105270.0,0.29458]
[1749937110422,1.16118613,105280.0,105270.0,0.48456765]
[1749937110632,1.15449872,105280.0,105270.0,0.48456765]
[1749937110839,1.16118612,105280.0,105270.0,0.48456765]
[1749937111052,1.16118613,105280.0,105270.0,0.48456765]
[1749937111669,1.16118613,105280.0,105270.0,0.49406703]
[1749937112493,1.16118613,105280.0,105270.0,0.50356632]
[1749937112706,1.15449872,105280.0,105270.0,0.51306552]
[1749937112923,0.5513089,105280.0,105270.0,0.51306552]
[1749937113142,1.16399711,105280.0,105270.0,0.51306552]
[1749937113360,1.1706845,105280.0,105270.0,0.51306552]
[1749937114010,1.16399711,105280.0,105270.0,0.51306552]
[1749937114217,1.17068447,105280.0,105270.0,0.51306552]
[1749937114422,1.1706845,105280.0,105270.0,0.51306552]
[1749937115045,1.17068442,105280.0,105270.0,0.51306552]
[1749937115254,1.26683364,105280.0,105270.0,0.51306552]
[1749937115464,1.26683365,105280.0,105270.0,0.51306552]
[1749937115671,1.16399711,105280.0,105270.0,0.51306552]
[1749937116094,1.17068439,105280.0,105270.0,0.51306552]
[1749937116718,1.16399711,105280.0,105270.0,0.51306552]
[1749937116929,1.17068438,105280.0,105270.0,0.51306552]
[1749937117145,1.16399711,105280.0,105270.0,0.51306552]